{"text_format":"1","workbook":"xlsx","n_sheets":4,"sheets":["Exceltool Modernisierungspakete","Tabelle2","Ergebnisse Einzelmaßnahmen","Hinweise"],"not_rendered":{"charts":0,"images":7,"macros":1,"external_links":0,"defined_names":0,"comments":0,"pivot_tables":0},"unopened":[],"bounds":{"document_bytes":16777216,"sheet_cells":100000,"rows_first":2000,"rows_last":500,"rows_between":2000,"halvings":0,"cell_chars":16384,"cell_head_chars":4096},"cells_cut":0,"cells_raw":0,"read":"row_number_cap","date_system":"1900"}

{"sheet":"Exceltool Modernisierungspakete","index":0,"n_rows":58,"n_cols":11,"rows_kept":58,"cut":false,"hidden":false,"merged":[[24,3,24,4],[35,6,35,8],[25,6,26,7],[31,3,31,4],[25,3,25,4],[26,1,26,2],[37,3,37,4],[25,10,26,10],[25,8,26,9],[27,8,27,9],[26,3,26,4],[33,6,33,7],[27,6,27,7],[25,1,25,2],[28,1,28,2],[9,3,9,4],[14,1,14,2],[14,3,14,4],[20,10,21,10],[23,6,24,7],[23,8,24,9],[23,10,24,10],[23,3,23,4],[17,1,17,2],[19,1,19,2],[20,1,20,2],[17,3,17,4],[21,3,21,4],[19,3,19,4],[20,3,20,4],[24,1,24,2],[15,6,15,7],[22,8,22,9],[14,6,14,7],[16,6,16,7],[20,6,21,7],[18,8,18,9],[19,8,19,9],[18,6,18,7],[22,6,22,7],[20,8,21,9],[15,8,15,9],[14,8,14,9],[1,1,2,9],[55,5,55,6],[56,5,56,6],[57,5,57,6],[55,2,55,3],[56,2,56,3],[57,2,57,3],[50,5,50,7],[46,1,46,4],[50,1,50,4],[53,1,53,3],[53,5,53,7],[44,2,44,4],[42,5,42,7],[43,5,43,7],[33,8,33,9],[48,1,48,4],[48,5,48,7],[51,1,51,4],[51,5,51,7],[38,3,38,4],[47,1,47,4],[46,5,46,7],[44,5,44,7],[47,5,47,7],[36,6,39,8],[37,1,37,2],[42,2,42,4],[43,2,43,4],[3,1,3,9],[27,1,27,2],[30,1,30,2],[27,3,27,4],[30,3,30,4],[28,3,28,4],[6,7,7,9],[8,7,8,9],[6,6,7,6],[16,8,16,9],[23,1,23,2],[16,3,16,4],[16,1,16,2],[6,2,6,4],[7,2,7,4],[8,2,8,4]],"read":"row_number_cap"}
[{"$f":"Tabelle2!A2","v":1}]
[null," Heizungs-Check 2.0:\nExcel-Tool zu Einsparpotenzial und Wirtschaftlichkeit"]
[]
[{"$f":"Tabelle2!A34","v":1},"Ergebnis des Heizungs-Checks: Anlagenbewertung"]
[{"$f":"Tabelle2!A48","v":1},"Allgemeine Projektdaten"]
[{"$f":"Tabelle2!A19","v":1}]
[{"$f":"Tabelle2!N57","v":1},"Projekt-Nr.",null,null,null,null,"Ersteller"]
[1,"Name"]
[null,"Straße",null,null,null,null,"Datum",{"$f":"TODAY()","v":"2016-08-15"}]
[null,"PLZ, Ort"]
[]
[1,1,1,{"$f":"Tabelle2!H1","v":""},null,{"$f":"Tabelle2!M62","v":1},{"$f":"Tabelle2!M67","v":1}]
[null,"Anlagendaten"]
[]
[null,"Gebäudeart",null,null,null,null,"Art der Heizung"]
[null,null,null,null,null,null,{"$f":"IF(Tabelle2!A44=3,\"Anzahl Heizkreise\",\"Anzahl Heizflächen\")","v":"Anzahl Heizflächen"}]
[null,"Anzahl beheizte Wohneinheiten",null,null,null,null,"Höhe des Gebäudes",null,null,null,"m"]
[null,"Beheizbare Nutzfläche",null,null,null,"m²"]
[null,null,null,null,null,null,"Auslegungstemperaturen"]
[null,"Wärmeschutz ",null,null,null,null,null,null,null,null,"°C"]
[null,"Heizlast bestimmen",null,null,null,null,"Vorlauftemperatur während des Heizungs-Checks",null,null,null,"°C"]
[null,null,null,null,null,"kW"]
[null,null,null,null,null,null,"Soll-Raumtemperatur",null,null,null,"°C"]
[null,"Wärmeerzeuger",null,null,null,null,"Außentemperatur während des Heizungs-Checks",null,null,null,"°C"]
[null,"Aktueller Verbrauch"]
[null,{"$f":"IF(AND(B12>1,Tabelle2!A19=2),\"Bezug auf Brennwert\",\"\")","v":""},null,null,null,"kWh/a","Norm-Außentemperatur der Region",null,null,null,"°C"]
[]
[null,{"$f":"IF(A6=1,\"Energiepreis\",IF(A6=2,\"Gaspreis\",IF(A6=3,\"Ölpreis\",IF(A6=4,\"Wärmepumpen-Strompreis\",IF(A6=5,\"Biomassepreis\",\"\")))))","v":"Energiepreis"},null,null,null,null,"Auslegungs-Vorlauftemperatur",null,{"$f":"Tabelle2!B36","v":"Temperatur > 90 °C"},null,"°C"]
[null,{"$f":"IF(AND(Tabelle2!M62>1,Tabelle2!A19=2),\"Bezug auf Brennwert\",\"\")","v":""},null,null,null,"€/kWh"]
[]
[null,"Hilfsenergie-Strompreis"]
[null,null,null,null,null,"€/kWh"]
[]
[null,"Modernisierungsmaßnahmen"]
[]
[null,null,null,null,null,null,{"$f":"IF(Tabelle2!C56=\"\",\"\",\"Beschreibung der Maßnahme:\")","v":""}]
[null,null,null,null,null,null,{"$f":"IF(Tabelle2!C56=\"\",\"\",Tabelle2!C56)","v":""}]
[null,"Einsparpotenzial"]
[]
[]
[null,"Ergebnisse"]
[]
[null,"Einsparungen","Endenergie Wärme",null,null,{"$f":"IF(Tabelle2!D61=\"\",\"\",Tabelle2!D61)","v":""},null,null,"kWh/a"]
[null,null,"Hilfsenergie (Strom)",null,null,{"$f":"IF(Tabelle2!D63=\"\",\"\",Tabelle2!D63)","v":""},null,null,"kWh/a"]
[null,null,"Gesamtenergiekosten",null,null,{"$f":"IF(Tabelle2!F67=\"\",\"\",Tabelle2!F67)","v":""},null,null,"€/a"]
[]
[null,"Investitionskosten"]
[null,null,null,null,null,null,null,null,"€"]
[null,"Förderungsbetrag",null,null,null,null,null,null,"€"]
[]
[null,"Statische Amortisationszeit",null,null,null,{"$f":"IF(Tabelle2!C82=\"\",\"\",Tabelle2!C82)","v":""},null,null,"Jahre"]
[null,"Amortationszeit innerhalb der Lebensdauer",null,null,null,{"$f":"IF(F51=\"\",\"\",Tabelle2!F82)","v":""}]
[]
[null,"Einsparung Primärenergie",null,null,null,"Einsparung CO2-Emissionen"]
[]
[null,"Wärme",{"$f":"IF(Tabelle2!E85=\"\",\"\",Tabelle2!E85)","v":""},null,"kWh/a","Wärme",null,{"$f":"IF(Tabelle2!G89=\"\",\"\",Tabelle2!G89)","v":""},"kg/a"]
[null,"Hilfsenergie (Strom)",{"$f":"IF(Tabelle2!E86=\"\",\"\",Tabelle2!E86)","v":""},null,"kWh/a","Hilfsenergie (Strom)",null,{"$f":"IF(Tabelle2!G90=\"\",\"\",Tabelle2!G90)","v":""},"kg/a"]
[null,"Gesamteinsparung",{"$f":"IF(Tabelle2!E87=\"\",\"\",Tabelle2!E87)","v":""},null,"kWh/a","Gesamteinsparung",null,{"$f":"IF(Tabelle2!G91=\"\",\"\",Tabelle2!G91)","v":""},"kg/a"]

{"sheet":"Tabelle2","index":1,"n_rows":96,"n_cols":17,"rows_kept":96,"cut":false,"hidden":true,"merged":[]}
["Gebäudeart","Bitte wählen",null,null,null,"Heizlast-Berechnung",null,{"$f":"IF(OR(A11=1,'Exceltool Modernisierungspakete'!$D$18=\"\"),\"\",IF(A11=2,J1,IF(A11=3,J2,IF(A11=4,J3,IF(A11=5,J4,IF(A11=6,J5,IF(A11=7,J6,\"\")))))))","v":""},"bis 1977",{"$f":"0.1725*'Exceltool Modernisierungspakete'!$D$18^0.9866","v":0}]
[1,"Ein-/Zweifamilienhaus",null,null,null,null,null,null,"1978 - 1983",{"$f":"0.1278*'Exceltool Modernisierungspakete'!$D$18^0.9757","v":0}]
[null,null,null,null,null,null,null,null,"1984 - 1994",{"$f":"0.1105*'Exceltool Modernisierungspakete'!$D$18^0.9745","v":0}]
["Heizlast","Bitte wählen",null,null,null,null,null,null,"1995 - 2001",{"$f":"0.0829*'Exceltool Modernisierungspakete'!$D$18^0.9522","v":0}]
[{"$f":"'Exceltool Modernisierungspakete'!$A$12","v":1},"Manuelle Eingabe",null,null,null,null,null,null,"2002 - 2008",{"$f":"0.0565*'Exceltool Modernisierungspakete'!$D$18^0.949","v":0}]
[null,"Über Baualtersklasse",null,null,null,null,null,null,"ab 2009",{"$f":"0.0499*'Exceltool Modernisierungspakete'!$D$18^0.9391","v":0}]
["Wert berechnet",{"$f":"H1","v":""}]
["Wert gesamt",{"$f":"'Exceltool Modernisierungspakete'!D22","v":0},null,null,null,"Verbrauchswert-Berechnung",null,{"$f":"IF(A11=1,\"\",IF(A11=2,J8,IF(A11=3,J9,IF(A11=4,J10,IF(A11=5,J11,IF(A11=6,J12,IF(A11=7,J13,\"\")))))))","v":""},"bis 1977",{"$f":"IF($A$19=1,\"\",IF(OR($A$19=2,$A$19=3),181*$B$31,IF($A$19=4,72*$B$31,IF($A$19=5,199*$B$31,\"\"))))","v":""}]
[null,null,null,null,null,null,null,{"$f":"IF(H8=\"\",\"\",ROUND(H8,-1))","v":""},"1978 - 1983",{"$f":"IF($A$19=1,\"\",IF(OR($A$19=2,$A$19=3),156*$B$31,IF($A$19=4,62*$B$31,IF($A$19=5,172*$B$31,\"\"))))","v":""}]
["Wärmeschutz","Bitte wählen",null,null,null,null,null,null,"1984 - 1994",{"$f":"IF($A$19=1,\"\",IF(OR($A$19=2,$A$19=3),130*$B$31,IF($A$19=4,52*$B$31,IF($A$19=5,143*$B$31,\"\"))))","v":""}]
[1,"bis 1977",null,null,null,null,null,null,"1995 - 2001",{"$f":"IF($A$19=1,\"\",IF(OR($A$19=2,$A$19=3),103*$B$31,IF($A$19=4,41*$B$31,IF($A$19=5,114*$B$31,\"\"))))","v":""}]
[null,"1978 - 1983",null,null,null,null,null,null,"2002 - 2008",{"$f":"IF($A$19=1,\"\",IF(OR($A$19=2,$A$19=3),72*$B$31,IF($A$19=4,29*$B$31,IF($A$19=5,79*$B$31,\"\"))))","v":""}]
[null,"1984 - 1994",null,null,null,null,null,null,"ab 2009",{"$f":"IF($A$19=1,\"\",IF(OR($A$19=2,$A$19=3),50*$B$31,IF($A$19=4,20*$B$31,IF($A$19=5,55*$B$31,\"\"))))","v":""}]
[null,"1995 - 2001"]
[null,"2002 - 2008"]
[null,"ab 2009",null,null,null,"Systemtemperaturen-Berechnung"]
[null,null,null,null,null,null,{"$f":"IF('Exceltool Modernisierungspakete'!I21=\"\",\"\",'Exceltool Modernisierungspakete'!I21)","v":""}]
["Wärmeerzeuger","Bitte wählen",null,null,null,null,{"$f":"IF('Exceltool Modernisierungspakete'!I23=\"\",\"\",'Exceltool Modernisierungspakete'!I23)","v":""}]
[1,"Gaskessel",null,null,null,null,{"$f":"IF('Exceltool Modernisierungspakete'!I24=\"\",\"\",'Exceltool Modernisierungspakete'!I24)","v":""}]
[null,"Ölkessel",null,null,null,null,{"$f":"IF('Exceltool Modernisierungspakete'!I26=\"\",\"\",'Exceltool Modernisierungspakete'!I26)","v":""}]
[null,"Wärmepumpe",null,null,null,"n",{"$f":"IF(A44=1,\"\",IF(A44=2,1.3,IF(A44=3,1.1,\"\")))","v":""}]
[null,"Biomassekessel",null,null,null,null,{"$f":"IF(OR(G17=\"\",G18=\"\",G19=\"\",G20=\"\",G21=\"\"),\"\",(G18-G19)/(G18-G20))","v":""},null,null,{"$f":"IF(AND(Tabelle2!H1>40,Tabelle2!H1>\"\"),\"blabla\",\"\")","v":""}]
[null,null,null,null,null,null,{"$f":"IF(G22=\"\",\"\",(G17-G18)/(G22^(1/G21))+G18)","v":""}]
[]
["Aktueller Verbrauchswert","Bitte wählen"]
[1,"Manuelle Eingabe"]
[null,"Typischen Wert berechnen",null,null,"Brennwertbezug"]
["Wert berechnet",{"$f":"IF(H9=\"\",\"\",IF(A19=2,ROUND(H9*E28,-1),H9))","v":""},null,null,1.1100000000000001]
["Wert gesamt",{"$f":"IF('Exceltool Modernisierungspakete'!D26=\"\",\"\",'Exceltool Modernisierungspakete'!D26)","v":""}]
[]
["Nutzfläche",{"$f":"IF('Exceltool Modernisierungspakete'!D18=\"\",\"\",'Exceltool Modernisierungspakete'!D18)","v":""},null,null,null,null,null,null,null,null,null,null,"90/70"]
[null,null,null,null,null,null,null,null,null,null,null,null,"70/55"]
["Systemtemperaturen","Bitte wählen",null,null,null,null,null,null,null,null,null,null,"55/45"]
[1,"Manuelle Eingabe",null,null,null,null,null,null,null,null,null,null,"35/28"]
[null,"Berechnung"]
["Wert berechnet",{"$f":"IF(G23>90,\"Temperatur > 90 °C\",G23)","v":"Temperatur > 90 °C"}]
["Wert gesamt",{"$f":"IF(A34=2,'Exceltool Modernisierungspakete'!I20,'Exceltool Modernisierungspakete'!I34)","v":0}]
[]
["Anzahl Wohneinheiten","Bitte wählen"]
[1,1]
[null,2]
[]
["Art der Heizung","Bitte wählen"]
[1,"Heizkörper"]
[null,"Flächenheizungen"]
[]
["Modernisierungsvarianten","Bitte wählen",null,null,null,null,null,null,null,"Beschreibungen"]
[1,{"$f":"IF(A19=1,\"\",E48)","v":""},null,null,"Optimierung der Heizungsanlage",null,null,null,null,"V1","Einbau Hocheffizienzpumpe + voreinstellbare Thermostatventile, Dämmung Verteilleitung Keller, Hydraulischer Abgleich, Einstellung Systemtemperaturen/Betriebszeiten"]
[null,{"$f":"IF(A19=2,E49,IF(A19=3,E51,IF(A19=4,E53,IF(A19=5,E54,\"\"))))","v":""},null,null,"Gas-Brennwertkessel + Speicher + Optimierung",null,null,null,null,"V2","Einbau Gas-Brennwertkessel + indirekt beheizter Speicher, Sanierung Abgasanlage, Optimierung Gesamtanlage\n"]
[null,{"$f":"IF(A19=2,E50,IF(A19=3,E52,\"\"))","v":""},null,null,"Gas-Brennwertkessel + solare Trinkwassererwärmung + Optimierung",null,null,null,null,"V3","Einbau Gas-Brennwertkessel + Solaranlage (Flachkollektor) mit bivalentem Speicher für Trinkwassererwärmung, Sanierung Abgasanlage, Optimierung Gesamtanlage"]
[null,null,null,null,"Öl-Brennwertkessel + Speicher + Optimierung",null,null,null,null,"V4","Einbau Öl-Brennwertkessel + indirekt beheizter Speicher, Sanierung Abgasanlage, Optimierung Gesamtanlage\n"]
[null,null,null,null,"Öl-Brennwertkessel + solare Trinkwassererwärmung + Optimierung",null,null,null,null,"V5","Einbau Öl-Brennwertkessel + Solaranlage (Flachkollektor) mit bivalentem Speicher für Trinkwassererwärmung, Sanierung Abgasanlage, Optimierung Gesamtanlage"]
[null,null,null,null,"Luft-Wasser-Wärmepumpe + Speicher + Optimierung",null,null,null,null,"V6","Einbau Luft-Wasser-Wärmepumpe + indirekt beheizter Speicher, Optimierung Gesamtanlage"]
[null,null,null,null,"Pelletkessel + Speicher + Optimierung",null,null,null,null,"V7","Einibau Pelletkessel + indirekt beheizter Speicher, Brennstofflager und automatische Zeitführung, Sanierung Abgasanlage, Optimierung Gesamtanlage"]
[null,null,null,null,null,null,null,null,null,null,null,null,null,null,null,"Bitte wählen"]
["Einsparpotenzial",{"$f":"IF(OR(A19=2,A19=3),IF(A48=1,\"\",IF(A48=2,0.07,IF(A48=3,0.25,IF(A48=4,0.35,\"\")))),IF(A19=4,IF(A48=1,\"\",IF(A48=2,0.07,IF(A48=3,0.2,\"\"))),IF(A19=5,IF(A48=1,\"\",IF(A48=2,0.07,IF(A48=3,0.2,\"\"))),\"\")))","v":""},{"$f":"IF(AND(A48=2,NOT(A19=1)),K48,IF(AND(A19=2,A48=3),K49,IF(AND(A19=2,A48=4),K50,IF(AND(A19=3,A48=3),K51,IF(AND(A19=3,A48=4),K52,IF(AND(A19=4,A48=3),K53,IF(AND(A19=5,A48=3),K54,\"\")))))))","v":""},null,null,null,null,null,null,null,null,null,null,"Einsparpotenzial",null,"Manuelle Eingabe",{"$f":"B56","v":""}]
["Neuer Anteil",{"$f":"IF(Q58=\"\",\"\",1-Q58)","v":""},null,null,null,null,null,null,null,null,null,null,null,1,null,"Typischen Wert berechnen",{"$f":"IF('Exceltool Modernisierungspakete'!D39=\"\",\"\",'Exceltool Modernisierungspakete'!D39)","v":""}]
[null,null,null,null,null,null,null,null,null,null,null,null,null,null,null,"gesamt",{"$f":"IF(N57=1,\"\",IF(N57=3,Q56,IF(N57=2,Q57,\"\")))","v":""}]
["Einsparpotenzial Endenergie Wärme:",null,"alt",{"$f":"IF(B29=\"\",\"\",B29)","v":""},"kWh/a",null,null,"Energieträger","Arbeitspreis","Altpumpe ungeregelt","Hocheffizienzpumpe"]
[null,null,"neu",{"$f":"IF(OR(B57=\"\",D59=\"\"),\"\",B57*D59)","v":""},"kWh/a",null,null,null,"€/kWh",305,62]
[null,null,"gespart",{"$f":"IF(OR(D59=\"\",D60=\"\"),\"\",D59-D60)","v":""},"kWh/a",null,null,"Erdgas",0.06,1082,213,null,"Energiepreis","eigentlich",{"$f":"IF(A19=1,\"\",IF(A19=2,I61,IF(A19=3,I62,IF(A19=4,I65,IF(A19=5,I64,\"\")))))","v":""},null,"Bitte wählen"]
[null,null,null,null,null,null,null,"Heizöl",7.0000000000000007E-2,null,null,null,1,"eingetragen",{"$f":"IF('Exceltool Modernisierungspakete'!D29=\"\",\"\",'Exceltool Modernisierungspakete'!D29)","v":""},null,"Manuelle Eingabe"]
["Einsparpotenzial Hilfsenergie",null,"gespart",{"$f":"IF(OR(A48=1,B31=\"\"),\"\",2.5*B31)","v":""},"kWh/a",{"$f":"IF(OR(D63=\"\",O68=\"\"),\"\",D63*O68)","v":""},"€/a","Fernwärme",7.0000000000000007E-2,null,null,null,null,"gesamt",{"$f":"IF(M62=1,\"\",IF(M62=2,O62,IF(M62=3,O61,\"\")))","v":""},null,"Standardwert"]
[null,null,null,null,null,null,null,"Pellet",0.05,null,null,null,null,"angepasst",{"$f":"IF(O63=\"\",\"\",O63)","v":""}]
["Einsparpotenzial Energiekosten Wärme",null,"alt",{"$f":"IF(OR(D59=\"\",A19=1,O64=\"\"),\"\",O64*D59)","v":""},"€/a",null,null,"Wärmepumpen-Strom",0.2]
[null,null,"neu",{"$f":"IF(OR(D60=\"\",A19=1,O64=\"\"),\"\",O64*D60)","v":""},"€/a","gesamt",null,"Hilfsenergie Strom",0.26,null,null,null,"Hilfspreis","eigentlich",{"$f":"I66","v":0.26},null,"Bitte wählen"]
[null,null,"gespart",{"$f":"IF(OR(D65=\"\",D66=\"\"),\"\",D65-D66)","v":""},"€/a",{"$f":"IF(OR(F63=\"\",D67=\"\"),\"\",F63+D67)","v":""},"€/a",null,null,null,null,null,1,"eingetragen",{"$f":"IF('Exceltool Modernisierungspakete'!$D$32=\"\",\"\",'Exceltool Modernisierungspakete'!$D$32)","v":""},null,"Manuelle Eingabe"]
[null,null,null,null,null,null,null,null,null,null,null,null,null,"gesamt",{"$f":"IF(M67=1,\"\",IF(M67=2,O67,IF(M67=3,O66,\"\")))","v":""},null,"Standardwert"]
["Investitionskosten Maßnahme",null,{"$f":"IF(AND(A48=2,NOT(A19=1)),E80,IF(AND(A19=2,A48=3),F80,IF(AND(A19=2,A48=4),G80,IF(AND(A19=3,A48=3),H80,IF(AND(A19=3,A48=4),I80,IF(AND(A19=4,A48=3),J80,IF(AND(A19=5,A48=3),K80,\"\")))))))","v":""},"berechnet","V1","V2","V3","V4","V5","V6","V7"]
[{"$f":"'Exceltool Modernisierungspakete'!C12","v":1},"Bitte wählen",{"$f":"IF(A70=1,\"\",IF(AND(NOT('Exceltool Modernisierungspakete'!F48=\"\"),A70=2),'Exceltool Modernisierungspakete'!F48,IF(Tabelle2!A70=3,Tabelle2!C69,\"\")))","v":""},"manuell","Anzahl HK","Heizlast","Heizlast","Heizlast","Heizlast","Heizlast","Heizlast"]
[null,"Manuelle Eingabe",{"$f":"IF(C70=\"\",\"\",IF('Exceltool Modernisierungspakete'!F49=\"\",C70,C70-'Exceltool Modernisierungspakete'!F49))","v":""},"- Förderung",{"$f":"IF('Exceltool Modernisierungspakete'!I16=\"\",\"\",'Exceltool Modernisierungspakete'!I16)","v":""},{"$f":"B8","v":0},{"$f":"B8","v":0},{"$f":"B8","v":0},{"$f":"B8","v":0},{"$f":"B8","v":0},{"$f":"B8","v":0}]
[null,"Typischen Wert berechnen",null,null,{"$f":"IF(E71=\"\",\"\",38.258*E71 + 631.37)","v":""},{"$f":"IF(F71=\"\",\"\",26 * F71+ 3500)","v":3500},{"$f":"IF(G71=\"\",\"\",26*G71+3500)","v":3500},{"$f":" IF(H71=\"\",\"\",1.3775*H71^2 - 20.529*H71 + 5873.2)","v":5873.2},{"$f":"IF(I71=\"\",\"\", 1.3775*I71^2 - 20.529*I71 + 5873.2)","v":5873.2},{"$f":"IF(J71=\"\",\"\",-18 * J71^2 + 1514 * J71 + 3423)","v":3423},{"$f":" IF(K71=\"\",\"\",118*K71+ 18455)","v":18455}]
[null,null,null,null,null,"Anzahl WE","Nutzfläche","Anzahl WE","Nutzfläche",null,"Gebäudehöhe"]
[null,null,null,null,null,{"$f":"IF(A40=1,\"\",IF(A40=2,1,IF(A40=3,2,\"\")))","v":""},{"$f":"B31","v":""},{"$f":"IF(A40=1,\"\",IF(A40=2,1,IF(A40=3,2,\"\")))","v":""},{"$f":"B31","v":""},null,{"$f":"IF('Exceltool Modernisierungspakete'!I17=\"\",\"\",'Exceltool Modernisierungspakete'!I17)","v":""}]
[null,null,null,null,null,{"$f":"IF(F74=\"\",\"\",IF(F74=1,1500,IF(F74=2,1600,\"\")))","v":""},{"$f":"IF(G74=\"\",\"\",560*(0.09*G74^0.8)+3098)","v":""},{"$f":"IF(H74=\"\",\"\",IF(H74=1,1500,IF(H74=2,1600,\"\")))","v":""},{"$f":"IF(I74=\"\",\"\",560*(0.09*I74^0.8)+3098)","v":""},null,{"$f":"IF(K74=\"\",\"\",130*K74)","v":""}]
[null,null,null,null,null,"Gebäudehöhe","Gebäudehöhe","Gebäudehöhe","Gebäudehöhe"]
[null,null,null,null,null,{"$f":"IF('Exceltool Modernisierungspakete'!I17=\"\",\"\",'Exceltool Modernisierungspakete'!I17)","v":""},{"$f":"IF('Exceltool Modernisierungspakete'!I17=\"\",\"\",'Exceltool Modernisierungspakete'!I17)","v":""},{"$f":"IF('Exceltool Modernisierungspakete'!I17=\"\",\"\",'Exceltool Modernisierungspakete'!I17)","v":""},{"$f":"IF('Exceltool Modernisierungspakete'!I17=\"\",\"\",'Exceltool Modernisierungspakete'!I17)","v":""}]
[null,null,null,null,null,{"$f":"IF(F77=\"\",\"\",78*F77)","v":""},{"$f":"IF(G77=\"\",\"\",78*G77)","v":""},{"$f":"IF(H77=\"\",\"\",78*H77)","v":""},{"$f":"IF(I77=\"\",\"\",78*I77)","v":""}]
[null,null,null,null,{"$f":"IF(E72=\"\",\"\",E72)","v":""},{"$f":"IF(OR(F72=\"\",F75=\"\",F78=\"\",$E$71=\"\"),\"\",F72+F75+F78+35.887*$E$71+317.74)","v":""},{"$f":"IF(OR(G72=\"\",G75=\"\",G78=\"\",$E$71=\"\"),\"\",G72+G75+G78+35.887*$E$71+317.74)","v":""},"",{"$f":"IF(OR(I72=\"\",I75=\"\",I78=\"\",$E$71=\"\"),\"\",I72+I75+I78+35.887*$E$71+317.74)","v":""},{"$f":"IF(OR(E71=\"\",J72=\"\"),\"\",J72+35.887*$E$71+317.74)","v":""},{"$f":"IF(OR(K72=\"\",K75=\"\",E71=\"\"),\"\",K72+K75+35.887*$E$71+317.74)","v":""}]
[null,null,null,null,{"$f":"IF(E79=\"\",\"\",ROUND(E79,-1))","v":""},{"$f":"IF(F79=\"\",\"\",ROUND(F79,-2))","v":""},"","","","",""]
[null,null,null,null,null,null,null,null,null,null,null,null,null,"Lebensdauer: ",null,"Gerät","Jahre"]
["Statische Amortisationszeit",null,{"$f":"IF(OR(C71=\"\",F67=\"\"),\"\",IF(C71/F67<0,0,C71/F67))","v":""},"Jahre","in Lebensdauer:",{"$f":"IF(OR(N82=C82,N82>C82),\"ja\",\"nein\")","v":"ja"},null,"Energieträger","Primärenergiefaktor","CO2-Emissionsfaktor",null,null,null,{"$f":"IF(A48=1,\"\",IF(A48=2,Q82,IF(A48=3,(IF(A19=2,Q83,IF(A19=3,Q85,IF(A19=4,Q87,IF(A19=5,Q88,\"\"))))),IF(A48=4,IF(A19=2,Q84,IF(A19=3,Q86,\"\"))))))","v":""},"V1","HE-Pumpe",20]
[null,null,null,null,null,null,null,null,"fP","fCO2",null,null,null,null,"V2","Gas-BW",20]
[null,null,null,null,null,null,null,"Erdgas",1.1000000000000001,228,null,null,null,null,"V3","Solaranlage",20]
["Einsparpotenzial Primärenergie",null,"Einsparung PE Wärme",null,{"$f":"IF(OR(A19=1,D61=\"\"),\"\",IF(A19=2,D61/E28*I84,IF(A19=3,D61*I85,IF(A19=4,D61*I87,IF(A19=5,D61*I86,\"\")))))","v":""},"kWh/a",null,"Heizöl",1.1000000000000001,312,null,null,null,null,"V4","Öl-BW",20]
[null,null,"Einsparung PE HE",null,{"$f":"IF(D63=\"\",\"\",D63*I88)","v":""},"kWh/a",null,"Pellet",0.2,20,null,null,null,null,"V5","Solaranlage",20]
[null,null,"Einsparung PE gesamt",null,{"$f":"IF(OR(E85=\"\",E86=\"\"),\"\",E85+E86)","v":""},"kWh/a",null,"Wärmepumpen-Strom",1.8,568,null,null,null,null,"V6","LW-WP",20]
[null,null,null,null,null,null,null,"Hilfsenergie Strom",1.8,568,null,null,null,null,"V7","Pelletkessel",20]
["Einsparpotenzial CO2-Emissionen",null,"Einsparung CO2 Wärme",null,{"$f":"IF(OR(A19=1,D61=\"\"),\"\",IF(A19=2,D61/E28*J84,IF(A19=3,D61*J85,IF(A19=4,D61*J87,IF(A19=5,D61*J86,\"\")))))","v":""},"g/a",{"$f":"IF(E89=\"\",\"\",E89/1000)","v":""},"kg/a"]
[null,null,"Einsparung CO2 HE",null,{"$f":"IF(D63=\"\",\"\",D63*J88)","v":""},"g/a",{"$f":"IF(E90=\"\",\"\",E90/1000)","v":""},"kg/a"]
[null,null,"Einsparung CO2 gesamt",null,{"$f":"IF(OR(E89=\"\",E90=\"\"),\"\",E89+E90)","v":""},"g/a",{"$f":"IF(E91=\"\",\"\",E91/1000)","v":""},"kg/a"]
[]
[]
["Umrechnung",null,"Energieträger wählen",null,"alt",{"$f":"IF(Hinweise!H54=\"\",\"\",Hinweise!H54)","v":""}]
[null,1,"Heizöl",null,"neu",{"$f":"IF(F94=\"\",\"\",IF(B95=2,F94*10.081,IF(B95=3,F94*4.9,\"\")))","v":""}]
[null,null,"Pellets"]

{"sheet":"Ergebnisse Einzelmaßnahmen","index":2,"n_rows":34,"n_cols":9,"rows_kept":34,"cut":false,"hidden":false,"merged":[[22,8,23,8],[23,1,23,3],[25,2,25,8],[26,5,26,6],[22,7,23,7],[26,9,33,9],[28,1,29,3],[28,4,29,4],[28,5,29,5],[28,6,29,6],[28,7,29,7],[28,8,29,8],[30,1,30,3],[31,1,31,3],[32,1,32,3],[32,4,33,4],[32,5,33,5],[32,7,33,7],[32,8,33,8],[33,1,33,3],[20,1,20,3],[21,1,21,3],[22,1,22,3],[22,4,23,4],[22,5,23,5],[15,2,15,8],[16,5,16,6],[18,1,19,3],[18,4,19,4],[18,5,19,5],[18,6,19,6],[18,7,19,7],[18,8,19,8],[10,1,10,3],[10,4,13,4],[11,1,11,3],[11,7,11,8],[12,1,12,3],[12,5,13,5],[12,7,13,7],[12,8,13,8],[13,1,13,3],[8,1,9,3],[8,4,9,5],[8,6,9,6],[8,7,8,8],[0,0,3,16383]]}
["Ergebnisse Einzelmaßnahmen"]
[]
[]
[]
[]
[]
[null,"Typische Einsparungen bei Einzelmaßnahmen statt Modernisierungspaketen nach Heizungs-Check 2.0:"]
[]
[null,"Maßnahme",null,null,"Einsparpotenzial \nWärme",null,"Einsparung Hilfsenergie","Investitionskosten"]
[null,null,null,null,null,null,null,"von","bis"]
[null,"Einbau Hocheffizienzpumpe",null,null,7.0000000000000007E-2,0.01,2.5,300,500]
[null,"Dämmung Verteilleitungen Keller",null,null,null,0.02,null,400]
[null,"Einbau voreinstellbare Thermostatventile und",null,null,null,0.04,null,400,1000]
[null,"hydraulischer Abgleich"]
[]
[null,"Beispiel 1:","Einfamilienhaus, Wärmeschutzstandard 1984 -1994, Gasheizung"]
[null,null,"Nutzfläche: ",150,"m²","Vebrauchswert: ",null,19500,"kWh/a"]
[]
[null,"Maßnahme",null,null,"Investitions-\nkosten","Einsparung Wärme","Einsparung Hilfsenergie","Einsparung Energiekosten","Amortisa-\ntionszeit"]
[]
[null,"Einbau Hocheffizienzpumpe",null,null,300,{"$f":"F11*$H$17*1.11","v":216.45000000000002},{"$f":"G11*D17","v":375},{"$f":"MROUND(F21*0.06+$G$21*0.26,5)","v":110},{"$f":"E21/H21","v":2.7272727272727271}]
[null,"Dämmung Verteilleitungen Keller",null,null,400,{"$f":"F12*$H$17*1.11","v":432.90000000000003},null,25,16]
[null,"Einbau voreinstellbare Thermostatventile und",null,null,400,{"$f":"(F13+F14)*$H$17*1.11","v":865.80000000000007},null,50,8]
[null,"hydraulischer Abgleich"]
[]
[null,"Beispiel 2:","Einfamilienhaus, Wärmeschutzstandard 1984 -1994, Gasheizung"]
[null,null,"Nutzfläche: ",250,"m²","Vebrauchswert: ",null,32500,"kWh/a"]
[]
[null,"Maßnahme",null,null,"Investitions-\nkosten","Einsparung Wärme","Einsparung Hilfsenergie","Einsparung Energiekosten","Amortisa-\ntionszeit"]
[]
[null,"Einbau Hocheffizienzpumpe",null,null,400,{"$f":"F11*$H$27*1.11","v":360.75000000000006},{"$f":"G11*D27","v":625},{"$f":"MROUND(F31*0.06+$G$31*0.26,5)","v":185},{"$f":"E31/H31","v":2.1621621621621623}]
[null,"Dämmung Verteilleitungen Keller",null,null,400,{"$f":"F12*$H$27*1.11","v":721.50000000000011},null,45,8.8888888888888893]
[null,"Einbau voreinstellbare Thermostatventile und",null,null,500,{"$f":"(F13+F14)*$H$27*1.11","v":1443.0000000000002},null,85,5.882352941176471]
[null,"hydraulischer Abgleich"]

{"sheet":"Hinweise","index":3,"n_rows":93,"n_cols":10,"rows_kept":93,"cut":false,"hidden":false,"merged":[[92,3,96,8],[75,3,77,8],[65,1,65,2],[49,1,49,2],[53,7,53,8],[54,7,54,8],[53,5,53,6],[54,5,54,6],[72,3,73,8],[60,3,61,8],[62,3,63,8],[54,3,54,4],[55,7,55,8],[56,3,58,8],[89,3,90,8],[7,2,7,8],[23,1,23,2],[30,3,30,4],[33,3,33,4],[36,3,36,4],[10,1,12,8],[14,3,15,8],[19,4,19,8],[23,3,25,8],[17,4,18,8],[16,4,16,8],[14,1,14,2],[30,5,32,8],[33,5,35,8],[36,5,38,8],[27,1,27,2],[27,3,29,8],[39,5,41,8],[42,5,44,8],[39,3,39,4],[85,3,87,8],[0,0,3,16383],[83,1,83,2],[83,3,84,8],[42,3,42,4],[45,3,45,4],[60,1,60,2],[50,3,51,8],[49,3,49,8],[72,1,72,2],[45,5,47,8],[65,3,67,8],[68,3,70,8],[52,3,52,8],[75,1,75,2],[78,3,79,8],[80,3,81,8]]}
["Hinweise zur Benutzung des Excel-Tools"]
[]
[]
[]
[]
[]
[null,"Version:","1.0"]
[null,"Ersteller: ","ITG Institut für Technische Gebäudeausrüstung Dresden, Forschung und Anwendung GmbH"]
[null,null,"in Abstimmung mit Fraunhofer IFAM"]
[]
[null,"Das Excel-Tool dient dem Ziel einer Abschätzung des Einsparpotenzials und der Wirtschaftlichkeit von Heizungsmodernisierungen. Die Grundlage für die Modernisierungansätze der Heizungsanlage bieten die Modernisierungsvorschläge aus dem Heizungs-Check."]
[]
[]
[]
[null,"Anwendungshinweis:",null,"Den Berechnungen im vorliegendem Tool liegen mittlere Verhältnisse bei der Ermittlung der möglichen Einsparungen und Kosten zu Grunde. Im konkreten Einzelfall können sich Abweichungen zu den dargestellten Berechnungen ergeben. Ursachen dafür können sein:"]
[]
[null,null,null,null,"- abweichende Verhältnisse bei der vorhandenen Anlage, \n   beispielsweise beim tatsächlichen Verbrauch und dem möglichen \n   Einsparpotenzial "]
[null,null,null,null,"- unterschiedliche Investitionskosten in Abhängigkeit von \n   Hersteller, Region und Jahreszeit"]
[]
[null,null,null,null,"- schwankende Energiepreise"]
[]
[null,"Anmerkungen zu den Eingaben im Tool:"]
[]
[null,"Gültigkeitsbedingungen:",null,"Das Tool ist für die Berechnung von Ein- bis Zweifamilienhäusern \nmit einer Nutzfläche zwischen 50 und 500 m² und einer maximalen \nHeizlast von 40 kW konzipiert."]
[]
[]
[]
[null,"Wärmeschutz:",null,"Die Zuordnung zum jeweiligen Wärmeschutzniveau erfolgt nach dem Baujahr bzw. dem Sanierungsstand der Bauhülle. Kriterien für die Auswahl werden nachfolgend angegeben:"]
[]
[]
[null,null,null,"- bis 1977:",null,"Einfachverglasung (U = 5,0 W/m²K), einschaliges Mauerwerk (U = 1,0 W/m²K), schlecht gedämmtes Dach (U = 0,8 W/m²K), ungedämmte Kellerdecke"]
[]
[]
[null,null,null,"- 1978 bis 1983: ",null,"Zweifachverglasung, einschaliges Mauerwerk (U = 0,8 W/m²K), schlecht gedämmtes Dach (U = 0,5 W/m²K), ungedämmte Kellerdecke\n"]
[]
[]
[null,null,null,"- 1984 bis 1994:",null,"Zweifach-Wärmeschutzverglasung (U = 3,2 W/m²K), einschaliges Mauerwerk (U = 0,6 W/m²K), gedämmtes Dach (U = 0,4 W/m²K), ungedämmte Kellerdecke\n"]
[]
[]
[null,null,null,"- 1995 bis 2001:",null,"Zweifach-Wärmeschutzverglasung (U = 2,8 W/m²K), Mauerwerk (U = 0,5 W/m²K), gedämmtes Dach (U = 0,3 W/m²K), gedämmte Kellerdecke\n"]
[]
[]
[null,null,null,"- 2002 bis 2008:",null,"Zweifach-Wärmeschutzverglasung (U = 1,8 W/m²K), Wärmedämmverbundsystem (U = 0,35/0,45 W/m²K), gedämmtes Dach (U = 0,25/0,3 W/m²K), gedämmte Kellerdecke\n\n"]
[]
[]
[null,null,null,"- ab 2009:",null,"Zweifach-Wärmeschutzverglasung (U = 1,8 W/m²K), Wärmedämmverbundsystem (U = 0,28 W/m²K), gedämmtes Dach (U = 0,2 W/m²K), gedämmte Kellerdecke\n\n"]
[]
[]
[]
[null,"Heizlast & Verbrauchswert:",null,"Der Verbrauchswert für Gas ist brennwertbezogen einzutragen, da der Gaspreis wie üblich brennwertbezogen angesetzt wird.\nFür alle anderen Energieträger ist der Verbrauchswert auf den Heizwert bezogen."]
[null,null,null,"Die hinterlegten Verbrauchswerte entsprechen durchschnittlichen Werten. Liegt ein jährlicher Verbrauchswert vor, können diese Werte angepasst werden. "]
[]
[null,null,null,"Eine Umrechnung des jährlichen Brennstoffverbrauchs in kWh/a kann hier erfolgen:"]
[null,null,null,null,null,"Verbrauch:",null,null,null,{"$f":"IF(Tabelle2!B95=2,\"L/a\",IF(Tabelle2!B95=3,\"kg/a\",\"\"))","v":""}]
[null,null,null,null,null,"Entspricht:",null,{"$f":"IF(Tabelle2!F95=\"\",\"\",Tabelle2!F95)","v":""},null,{"$f":"IF(H55=\"\",\"\",\"kWh/a\")","v":""}]
[]
[null,"Auslegungstemperaturen:",null,"Die Auslegungs-Vorlauftemperatur der Heizungsanlage ist die notwendige Temperatur des Heizungswassers bei Norm-Außentemperatur. Anhand der Auslegungstemperaturen erfolgt die Dimensionierung der Heizkörper."]
[]
[]
[]
[null,"Norm-Außentemperatur:",null,"Norm-Außentemperaturen für deutsche Städte mit mehr als 20.000 Einwohnern werden in DIN EN 12831 Bbl.1: 2008-07 angegeben. Als Referenzklima für "]
[]
[null,null,null,"Deutschland gilt nach DIN V 18599-10:2011-12 der Referenzort Potsdam mit einer Norm-Außentemperatur von -14°C."]
[]
[]
[null,"Modernisierungen:",null,"Der Umfang der einzelnen Modernisierungen ist im Arbeitsblatt \"Excel-Tool\" beschrieben. Es wird davon ausgegangen, dass ein Austausch des Wärmeerzeugers stets eine Optimierung der Gesamtanlage einschließt."]
[]
[]
[null,null,null,"Die hinterlegten Einsparpotenziale entsprechen durchschnittlichen Werten. Je nach Zustand der Heizungsanlage können diese Werte entsprechend angepasst werden."]
[]
[]
[]
[null,"Hilfsenergie: ",null,"Es wird davon ausgegangen dass durch den Einbau einer Hocheffizienzpumpe \n2,5 kWh/m²a an Hilfsenergie eingespart werden können."]
[]
[]
[null,"Förderungen:",null,"Einfluss auf die Wirtschaftlichkeit von Modernisierungsmaßnahmen haben Investitions-Förderungen. Der Förderbetrag ist als positiver Wert einzutragen. \nEs stehen bundesweite Förderungen durch das Bundesamt für Wirtschaft und"]
[]
[]
[null,null,null,"Ausfuhrkontrolle  (BAFA) und die Kreditanstalt für Wiederaufbau (KfW) zur Verfügung. Die Optimierung der Gesamtanlage ist dabei Teil der Förderungen."]
[]
[null,null,null,"Aktuelle Fördersätze und Förderbedingungen können unter www.bafa.de bzw. unter www.kfw.de abgerufen werden."]
[]
[]
[null,"Lebensdauer der Anlage:",null,"Es wird von einer mittleren Lebensdauer der Heizungsanlagen von etwa 20 Jahren ausgegangen werden. Einzelne Komponenten wie Heizflächen/"]
[]
[null,null,null,"Rohrleitungen weisen höhere Lebensdauern von etwa 30 bis 35 Jahren auf. Hingegen beträgt die Lebensdauer von Heizungsumwälzpumpen oder Zirkulationspumpen nur etwa 10 Jahre."]
[]
[]
[]
[null,"CO2-Einsparungen:",null,"Die CO2-Emissionen werden mit den Standardwerten aus Gemis Version 4.94 ermittelt. Für Biomassekessel werden die CO2-Emissionen mit den typischen Emissionswerten von Pellets berechnet."]
[]
[]
[null,"Primärenergie-Einsparungen",null,"Die Berechnung der Einsparungen an Primärenergie erfolgen mit den Primärenergiefaktoren nach DIN V 1859: 2011-12 unter Berücksichtigung der Vorgaben der Energieeinsparverordnung (EnEV 2014) für den elektrischen Strom. Entsprechend EnEV erfolgt ein Bezug auf den nicht erneuerbaren Anteil des Primärenergiebedarfes. "]